[Event "Titled Tuesday Blitz March 21 Early 2023"]
[White "Shapiro, Viktor"]
[Black "Kukhmazov, Arsen"]
[WhiteFideId "4175700"]
[BlackFideId "24108260"]
[WhiteElo "2152"]
[BlackElo "2378"]
[Result "0-1"]
[Round "02"]
[TimeControl "180+2"]
[Date "2023.03.21"]
[WhiteClock "0:00:16"]
[BlackClock "0:00:15"]

1. c4 {[%clk 0:03:00]}  c6 {[%clk 0:02:59]} 2. Nf3 {[%clk 0:03:00]}  d5 {[%clk 0:03:00]} 3. d4 {[%clk 0:02:59]}  Nf6 {[%clk 0:03:00]} 4. Nc3 {[%clk 0:02:59]}  dxc4 {[%clk 0:02:59]} 5. a4 {[%clk 0:02:59]}  Bf5 {[%clk 0:02:58]} 6. e3 {[%clk 0:02:59]}  e6 {[%clk 0:02:58]} 7. Bxc4 {[%clk 0:03:00]}  Bb4 {[%clk 0:02:59]} 8. O-O {[%clk 0:02:59]}  Nbd7 {[%clk 0:02:59]} 9. Ne2 {[%clk 0:03:00]}  O-O {[%clk 0:02:53]} 10. b3 {[%clk 0:02:59]}  Qe7 {[%clk 0:02:50]} 11. Bb2 {[%clk 0:02:59]}  Ne4 {[%clk 0:02:49]} 12. Bd3 {[%clk 0:02:53]}  Rfd8 {[%clk 0:02:42]} 13. Qc2 {[%clk 0:02:53]}  Ndf6 {[%clk 0:02:32]} 14. Ne5 {[%clk 0:02:52]}  Nd6 {[%clk 0:02:30]} 15. f3 {[%clk 0:02:48]}  Bxd3 {[%clk 0:02:29]} 16. Nxd3 {[%clk 0:02:45]}  Nf5 {[%clk 0:02:03]} 17. Qc1 {[%clk 0:02:37]}  Ba5 {[%clk 0:01:40]} 18. e4 {[%clk 0:02:34]}  Nh4 {[%clk 0:01:41]} 19. g3 {[%clk 0:02:19]}  Ng6 {[%clk 0:01:38]} 20. Ba3 {[%clk 0:01:59]}  Qe8 {[%clk 0:01:36]} 21. Bc5 {[%clk 0:01:56]}  Bb6 {[%clk 0:01:35]} 22. b4 {[%clk 0:01:55]}  e5 {[%clk 0:01:30]} 23. Qc4 {[%clk 0:01:44]}  exd4 {[%clk 0:01:26]} 24. Rfd1 {[%clk 0:01:38]}  Nd7 {[%clk 0:01:16]} 25. Nxd4 {[%clk 0:01:17]}  h5 {[%clk 0:00:56]} 26. Kg2 {[%clk 0:01:16]}  h4 {[%clk 0:00:55]} 27. a5 {[%clk 0:01:09]}  Bc7 {[%clk 0:00:55]} 28. Nf5 {[%clk 0:01:04]}  Nxc5 {[%clk 0:00:35]} 29. Nxc5 {[%clk 0:01:02]}  b6 {[%clk 0:00:36]} 30. axb6 {[%clk 0:00:41]}  axb6 {[%clk 0:00:34]} 31. Nd3 {[%clk 0:00:38]}  Rxa1 {[%clk 0:00:28]} 32. Rxa1 {[%clk 0:00:38]}  Qd7 {[%clk 0:00:26]} 33. Nf2 {[%clk 0:00:35]}  b5 {[%clk 0:00:21]} 34. Qb3 {[%clk 0:00:33]}  Be5 {[%clk 0:00:21]} 35. Rd1 {[%clk 0:00:32]}  Qc7 {[%clk 0:00:21]} 36. f4 {[%clk 0:00:27]}  Bf6 {[%clk 0:00:20]} 37. e5 {[%clk 0:00:27]}  Be7 {[%clk 0:00:18]} 38. Ne4 {[%clk 0:00:27]}  Rxd1 {[%clk 0:00:17]} 39. Qxd1 {[%clk 0:00:26]}  Qc8 {[%clk 0:00:17]} 40. Qd3 {[%clk 0:00:25]}  Kf8 {[%clk 0:00:16]} 41. Ned6 {[%clk 0:00:24]}  Qe6 {[%clk 0:00:16]} 42. Qe4 {[%clk 0:00:20]}  h3+ {[%clk 0:00:15]} 43. Kxh3 {[%clk 0:00:20]}  Bxd6 {[%clk 0:00:16]} 44. Qxc6 {[%clk 0:00:17]}  Qxf5+ {[%clk 0:00:16]} 45. Kg2 {[%clk 0:00:18]}  Bxb4 {[%clk 0:00:07]} 46. Qxb5 {[%clk 0:00:16]}  Qc2+ {[%clk 0:00:06]} 47. Kh3 {[%clk 0:00:15]}  Qc8+ {[%clk 0:00:07]} 48. Kg2 {[%clk 0:00:15]}  Be7 {[%clk 0:00:08]} 49. h4 {[%clk 0:00:15]}  Bd8 {[%clk 0:00:08]} 50. h5 {[%clk 0:00:14]}  Ne7 {[%clk 0:00:09]} 51. Qd3 {[%clk 0:00:14]}  Qc6+ {[%clk 0:00:09]} 52. Qf3 {[%clk 0:00:13]}  Qxf3+ {[%clk 0:00:10]} 53. Kxf3 {[%clk 0:00:14]}  f6 {[%clk 0:00:10]} 54. g4 {[%clk 0:00:15]}  fxe5 {[%clk 0:00:10]} 55. fxe5 {[%clk 0:00:15]}  Kf7 {[%clk 0:00:11]} 56. Ke4 {[%clk 0:00:16]}  Ke6 {[%clk 0:00:11]} 57. g5 {[%clk 0:00:17]}  Bc7 {[%clk 0:00:12]} 58. h6 {[%clk 0:00:15]}  g6 {[%clk 0:00:12]} 59. h7 {[%clk 0:00:16]}  Bxe5 {[%clk 0:00:13]} 60. Kf3 {[%clk 0:00:15]}  Bh8 {[%clk 0:00:14]} 61. Kg4 {[%clk 0:00:16]}  Nd5 {[%clk 0:00:15]} 62. Kh4 {[%clk 0:00:16]}  Kf5 {[%clk 0:00:15]} 0-1


[Site "https://www.chess.com"]

[Event "Titled Tuesday Blitz March 21 Early 2023"]
[White "Rangel, Daniel"]
[Black "Fier, Alexandr"]
[WhiteFideId "2124475"]
[BlackFideId "2107139"]
[WhiteElo "2256"]
[BlackElo "2610"]
[Result "1-0"]
[Round "02"]
[TimeControl "180+2"]
[Date "2023.03.21"]
[WhiteClock "0:00:43"]
[BlackClock "0:01:07"]

1. c4 {[%clk 0:02:59]}  b6 {[%clk 0:02:59]} 2. g3 {[%clk 0:02:59]}  Bb7 {[%clk 0:02:59]} 3. Nf3 {[%clk 0:03:00]}  Bxf3 {[%clk 0:02:59]} 4. exf3 {[%clk 0:03:01]}  c5 {[%clk 0:03:00]} 5. d4 {[%clk 0:03:00]}  cxd4 {[%clk 0:03:00]} 6. Qxd4 {[%clk 0:03:01]}  Nc6 {[%clk 0:03:00]} 7. Qd2 {[%clk 0:03:00]}  g6 {[%clk 0:03:00]} 8. Bg2 {[%clk 0:02:59]}  Bg7 {[%clk 0:03:00]} 9. O-O {[%clk 0:02:59]}  Nf6 {[%clk 0:03:00]} 10. f4 {[%clk 0:02:58]}  O-O {[%clk 0:03:00]} 11. Nc3 {[%clk 0:02:58]}  Rc8 {[%clk 0:03:00]} 12. b3 {[%clk 0:02:57]}  d6 {[%clk 0:02:54]} 13. Bb2 {[%clk 0:02:56]}  Nd7 {[%clk 0:02:54]} 14. Rfe1 {[%clk 0:02:55]}  Nc5 {[%clk 0:02:52]} 15. Rad1 {[%clk 0:02:53]}  a5 {[%clk 0:02:51]} 16. Bh3 {[%clk 0:02:35]}  Ra8 {[%clk 0:02:46]} 17. Bg2 {[%clk 0:02:27]}  Rc8 {[%clk 0:02:45]} 18. Bh3 {[%clk 0:02:27]}  Rb8 {[%clk 0:02:41]} 19. Bg2 {[%clk 0:02:17]}  Nb4 {[%clk 0:02:40]} 20. Qe2 {[%clk 0:02:04]}  e6 {[%clk 0:02:34]} 21. a3 {[%clk 0:01:56]}  Nba6 {[%clk 0:02:34]} 22. Nb5 {[%clk 0:01:56]}  Bxb2 {[%clk 0:02:18]} 23. Qxb2 {[%clk 0:01:57]}  Qe7 {[%clk 0:02:18]} 24. Nxd6 {[%clk 0:01:53]}  Rfd8 {[%clk 0:02:18]} 25. Ne4 {[%clk 0:01:52]}  Nxe4 {[%clk 0:02:18]} 26. Bxe4 {[%clk 0:01:52]}  Nc5 {[%clk 0:02:17]} 27. Bc2 {[%clk 0:01:48]}  Rxd1 {[%clk 0:02:12]} 28. Rxd1 {[%clk 0:01:48]}  Rd8 {[%clk 0:02:12]} 29. Rxd8+ {[%clk 0:01:39]}  Qxd8 {[%clk 0:02:13]} 30. b4 {[%clk 0:01:40]}  Na6 {[%clk 0:02:02]} 31. Qc3 {[%clk 0:01:28]}  Qc7 {[%clk 0:01:51]} 32. Bd3 {[%clk 0:01:19]}  Nb8 {[%clk 0:01:51]} 33. c5 {[%clk 0:01:16]}  bxc5 {[%clk 0:01:41]} 34. bxa5 {[%clk 0:01:10]}  Qd6 {[%clk 0:01:28]} 35. a4 {[%clk 0:01:05]}  Kf8 {[%clk 0:01:26]} 36. Bb5 {[%clk 0:01:04]}  Ke7 {[%clk 0:01:25]} 37. a6 {[%clk 0:01:03]}  Nxa6 {[%clk 0:01:24]} 38. Bxa6 {[%clk 0:01:02]}  Qxa6 {[%clk 0:01:23]} 39. Qxc5+ {[%clk 0:01:03]}  Kd7 {[%clk 0:01:21]} 40. a5 {[%clk 0:00:58]}  Qe2 {[%clk 0:01:16]} 41. Qa7+ {[%clk 0:00:50]}  Ke8 {[%clk 0:01:12]} 42. Qa8+ {[%clk 0:00:47]}  Ke7 {[%clk 0:01:12]} 43. Qb7+ {[%clk 0:00:47]}  Kf6 {[%clk 0:01:12]} 44. a6 {[%clk 0:00:47]}  g5 {[%clk 0:01:07]} 45. fxg5+ {[%clk 0:00:44]}  Kxg5 {[%clk 0:01:07]} 46. a7 {[%clk 0:00:43]} 1-0


[Site "https://www.chess.com"]

[Event "Titled Tuesday Blitz March 21 Early 2023"]
[White "Mikhailovsky, Vladimir"]
[Black "Eynullayev, Atilla"]
[WhiteFideId "34105414"]
[BlackFideId "13413570"]
[WhiteElo "2293"]
[BlackElo "2181"]
[Result "1-0"]
[Round "02"]
[TimeControl "180+2"]
[Date "2023.03.21"]
[WhiteClock "0:00:09"]
[BlackClock "0:00:05"]

1. e4 {[%clk 0:03:00]}  c5 {[%clk 0:02:59]} 2. Nf3 {[%clk 0:03:01]}  d6 {[%clk 0:02:59]} 3. d4 {[%clk 0:03:01]}  cxd4 {[%clk 0:02:59]} 4. Nxd4 {[%clk 0:03:02]}  Nf6 {[%clk 0:03:00]} 5. Nc3 {[%clk 0:03:02]}  a6 {[%clk 0:03:00]} 6. Bd3 {[%clk 0:03:02]}  e5 {[%clk 0:02:59]} 7. Nde2 {[%clk 0:03:02]}  Be7 {[%clk 0:02:58]} 8. O-O {[%clk 0:03:02]}  O-O {[%clk 0:02:58]} 9. f4 {[%clk 0:03:03]}  b5 {[%clk 0:02:54]} 10. a3 {[%clk 0:03:00]}  Nbd7 {[%clk 0:02:47]} 11. Kh1 {[%clk 0:02:59]}  Bb7 {[%clk 0:02:47]} 12. Ng3 {[%clk 0:02:57]}  Nc5 {[%clk 0:02:30]} 13. fxe5 {[%clk 0:02:36]}  dxe5 {[%clk 0:02:26]} 14. Qf3 {[%clk 0:02:36]}  Ne6 {[%clk 0:02:01]} 15. Nf5 {[%clk 0:02:23]}  Nd4 {[%clk 0:01:47]} 16. Nxe7+ {[%clk 0:02:14]}  Qxe7 {[%clk 0:01:48]} 17. Qg3 {[%clk 0:02:14]}  Nh5 {[%clk 0:00:52]} 18. Qg4 {[%clk 0:02:06]}  Nf4 {[%clk 0:00:52]} 19. Bxf4 {[%clk 0:01:57]}  exf4 {[%clk 0:00:52]} 20. Rxf4 {[%clk 0:01:57]}  Ne6 {[%clk 0:00:21]} 21. Rf2 {[%clk 0:01:52]}  Rad8 {[%clk 0:00:20]} 22. Raf1 {[%clk 0:01:52]}  f6 {[%clk 0:00:18]} 23. Nd5 {[%clk 0:00:56]}  Bxd5 {[%clk 0:00:17]} 24. exd5 {[%clk 0:00:56]}  Nc7 {[%clk 0:00:15]} 25. Qh4 {[%clk 0:00:36]}  g6 {[%clk 0:00:08]} 26. c4 {[%clk 0:00:29]}  bxc4 {[%clk 0:00:06]} 27. Bxc4 {[%clk 0:00:30]}  Rd6 {[%clk 0:00:07]} 28. Re2 {[%clk 0:00:26]}  Qd8 {[%clk 0:00:05]} 29. Rfe1 {[%clk 0:00:27]}  Nxd5 {[%clk 0:00:05]} 30. Re7 {[%clk 0:00:08]}  Rf7 {[%clk 0:00:04]} 31. Rxf7 {[%clk 0:00:08]}  Kxf7 {[%clk 0:00:05]} 32. Qxh7+ {[%clk 0:00:09]} 1-0


[Site "https://www.chess.com"]

[Event "Titled Tuesday Blitz March 21 Early 2023"]
[White "Sanal, Vahap"]
[Black "Castellanos Gomez, Alejandro"]
[WhiteFideId "6300545"]
[BlackFideId "22284141"]
[WhiteElo "2606"]
[BlackElo "2158"]
[Result "1-0"]
[Round "02"]
[TimeControl "180+2"]
[Date "2023.03.21"]
[WhiteClock "0:00:07"]
[BlackClock "0:00:02"]

1. Nf3 {[%clk 0:03:00]}  d5 {[%clk 0:02:58]} 2. b3 {[%clk 0:03:01]}  Nf6 {[%clk 0:02:58]} 3. Bb2 {[%clk 0:03:01]}  c5 {[%clk 0:02:58]} 4. g3 {[%clk 0:03:02]}  Nc6 {[%clk 0:02:59]} 5. Bg2 {[%clk 0:03:03]}  e6 {[%clk 0:02:59]} 6. O-O {[%clk 0:03:03]}  Be7 {[%clk 0:02:59]} 7. d3 {[%clk 0:03:04]}  O-O {[%clk 0:02:59]} 8. Nbd2 {[%clk 0:03:05]}  b6 {[%clk 0:03:00]} 9. e4 {[%clk 0:03:05]}  Bb7 {[%clk 0:03:00]} 10. Re1 {[%clk 0:03:03]}  Re8 {[%clk 0:02:54]} 11. exd5 {[%clk 0:03:03]}  exd5 {[%clk 0:02:52]} 12. Ne5 {[%clk 0:03:03]}  Nxe5 {[%clk 0:02:45]} 13. Bxe5 {[%clk 0:03:04]}  Bd6 {[%clk 0:02:42]} 14. d4 {[%clk 0:02:43]}  Bxe5 {[%clk 0:02:32]} 15. dxe5 {[%clk 0:02:42]}  Nd7 {[%clk 0:02:15]} 16. f4 {[%clk 0:02:42]}  Qc7 {[%clk 0:02:03]} 17. Nf1 {[%clk 0:02:40]}  Rad8 {[%clk 0:01:59]} 18. Ne3 {[%clk 0:02:40]}  d4 {[%clk 0:01:31]} 19. Bxb7 {[%clk 0:02:21]}  Qxb7 {[%clk 0:01:30]} 20. Nf5 {[%clk 0:02:21]}  Re6 {[%clk 0:01:19]} 21. Qg4 {[%clk 0:02:19]}  g6 {[%clk 0:01:10]} 22. Qg5 {[%clk 0:01:50]}  Qc7 {[%clk 0:00:53]} 23. Nh6+ {[%clk 0:01:49]}  Kg7 {[%clk 0:00:50]} 24. Ng4 {[%clk 0:01:49]}  Rde8 {[%clk 0:00:26]} 25. f5 {[%clk 0:01:22]}  Rxe5 {[%clk 0:00:15]} 26. Rxe5 {[%clk 0:01:05]}  Rxe5 {[%clk 0:00:14]} 27. f6+ {[%clk 0:01:00]}  Kf8 {[%clk 0:00:12]} 28. Qh6+ {[%clk 0:00:58]}  Ke8 {[%clk 0:00:12]} 29. Nxe5 {[%clk 0:00:56]}  Qxe5 {[%clk 0:00:11]} 30. Rf1 {[%clk 0:00:49]}  Nxf6 {[%clk 0:00:08]} 31. Qg7 {[%clk 0:00:20]}  Ke7 {[%clk 0:00:08]} 32. Rf2 {[%clk 0:00:17]}  Qe1+ {[%clk 0:00:07]} 33. Kg2 {[%clk 0:00:18]}  Qe4+ {[%clk 0:00:07]} 34. Rf3 {[%clk 0:00:18]}  Qe2+ {[%clk 0:00:07]} 35. Rf2 {[%clk 0:00:19]}  Qe4+ {[%clk 0:00:07]} 36. Kf1 {[%clk 0:00:09]}  Qh1+ {[%clk 0:00:05]} 37. Ke2 {[%clk 0:00:09]}  Qe4+ {[%clk 0:00:04]} 38. Kd1 {[%clk 0:00:10]}  Qg4+ {[%clk 0:00:02]} 39. Re2+ {[%clk 0:00:07]} 1-0


[Site "https://www.chess.com"]

[Event "Titled Tuesday Blitz March 21 Early 2023"]
[White "Real_OceanStorm"]
[Black "Yosha_Iglesias"]
[WhiteElo "2815"]
[BlackElo "2457"]
[Result "1-0"]
[Round "02"]
[TimeControl "180+2"]
[Date "2023.03.21"]
[WhiteClock "0:00:42"]
[BlackClock "0:00:42"]

1. e4 {[%clk 0:02:55]}  c5 {[%clk 0:02:59]} 2. Nf3 {[%clk 0:02:54]}  d6 {[%clk 0:02:59]} 3. c3 {[%clk 0:02:55]}  Nf6 {[%clk 0:02:59]} 4. e5 {[%clk 0:02:53]}  dxe5 {[%clk 0:02:56]} 5. Nxe5 {[%clk 0:02:54]}  a6 {[%clk 0:02:48]} 6. d4 {[%clk 0:02:53]}  Nbd7 {[%clk 0:02:45]} 7. Nxd7 {[%clk 0:02:53]}  Qxd7 {[%clk 0:02:32]} 8. Be2 {[%clk 0:02:42]}  e6 {[%clk 0:02:06]} 9. Be3 {[%clk 0:02:19]}  cxd4 {[%clk 0:02:02]} 10. Bxd4 {[%clk 0:02:19]}  Be7 {[%clk 0:02:00]} 11. O-O {[%clk 0:02:18]}  b5 {[%clk 0:01:49]} 12. Nd2 {[%clk 0:01:53]}  Bb7 {[%clk 0:01:47]} 13. Bf3 {[%clk 0:01:46]}  O-O {[%clk 0:01:41]} 14. Qe2 {[%clk 0:01:45]}  Rfd8 {[%clk 0:01:35]} 15. Rad1 {[%clk 0:01:45]}  Bxf3 {[%clk 0:01:29]} 16. Nxf3 {[%clk 0:01:44]}  Qb7 {[%clk 0:01:16]} 17. h3 {[%clk 0:01:29]}  h6 {[%clk 0:01:09]} 18. Ne5 {[%clk 0:01:18]}  Rd5 {[%clk 0:00:57]} 19. Qf3 {[%clk 0:00:43]}  Rad8 {[%clk 0:00:54]} 20. Rfe1 {[%clk 0:00:42]}  Qc6 {[%clk 0:00:42]} 1-0


[Site "https://www.chess.com"]

[Event "Titled Tuesday Blitz March 21 Early 2023"]
[White "Tarasova, Viktoriya"]
[Black "Narayanan, Srinath"]
[WhiteFideId "4175840"]
[BlackFideId "5018420"]
[WhiteElo "2182"]
[BlackElo "2438"]
[Result "0-1"]
[Round "02"]
[TimeControl "180+2"]
[Date "2023.03.21"]
[WhiteClock "0:00:05"]
[BlackClock "0:00:33"]

1. d4 {[%clk 0:03:00]}  Nf6 {[%clk 0:02:59]} 2. c4 {[%clk 0:03:01]}  e6 {[%clk 0:02:59]} 3. Nc3 {[%clk 0:03:01]}  Bb4 {[%clk 0:02:59]} 4. Nf3 {[%clk 0:03:01]}  O-O {[%clk 0:02:56]} 5. Bg5 {[%clk 0:03:01]}  c5 {[%clk 0:02:55]} 6. Rc1 {[%clk 0:02:59]}  h6 {[%clk 0:02:55]} 7. Bh4 {[%clk 0:02:59]}  cxd4 {[%clk 0:02:55]} 8. Nxd4 {[%clk 0:02:58]}  d5 {[%clk 0:02:54]} 9. e3 {[%clk 0:02:58]}  Nc6 {[%clk 0:02:52]} 10. cxd5 {[%clk 0:02:42]}  Bxc3+ {[%clk 0:02:48]} 11. Rxc3 {[%clk 0:02:39]}  Qxd5 {[%clk 0:02:44]} 12. Nxc6 {[%clk 0:02:33]}  bxc6 {[%clk 0:02:45]} 13. Bxf6 {[%clk 0:02:26]}  gxf6 {[%clk 0:02:45]} 14. Qxd5 {[%clk 0:02:16]}  cxd5 {[%clk 0:02:46]} 15. Be2 {[%clk 0:02:01]}  e5 {[%clk 0:02:45]} 16. Kd2 {[%clk 0:01:59]}  Be6 {[%clk 0:02:45]} 17. Rhc1 {[%clk 0:01:53]}  Rfd8 {[%clk 0:02:45]} 18. Rc7 {[%clk 0:01:37]}  d4 {[%clk 0:02:42]} 19. b3 {[%clk 0:01:19]}  a5 {[%clk 0:02:16]} 20. Bf3 {[%clk 0:01:09]}  Ra6 {[%clk 0:02:06]} 21. R7c6 {[%clk 0:01:00]}  Ra7 {[%clk 0:02:02]} 22. Rc7 {[%clk 0:00:59]}  Ra6 {[%clk 0:01:27]} 23. R7c6 {[%clk 0:00:57]}  Rxc6 {[%clk 0:01:27]} 24. Rxc6 {[%clk 0:00:56]}  f5 {[%clk 0:01:28]} 25. exd4 {[%clk 0:00:45]}  Rxd4+ {[%clk 0:01:29]} 26. Ke1 {[%clk 0:00:34]}  a4 {[%clk 0:01:27]} 27. Rb6 {[%clk 0:00:16]}  axb3 {[%clk 0:01:12]} 28. axb3 {[%clk 0:00:15]}  e4 {[%clk 0:01:12]} 29. Be2 {[%clk 0:00:14]}  f4 {[%clk 0:01:11]} 30. h3 {[%clk 0:00:11]}  Kg7 {[%clk 0:01:11]} 31. Rb5 {[%clk 0:00:09]}  Kf6 {[%clk 0:01:09]} 32. b4 {[%clk 0:00:08]}  e3 {[%clk 0:01:02]} 33. fxe3 {[%clk 0:00:08]}  fxe3 {[%clk 0:01:03]} 34. Bf3 {[%clk 0:00:06]}  Rd2 {[%clk 0:01:03]} 35. Rb6 {[%clk 0:00:06]}  Ke5 {[%clk 0:00:58]} 36. b5 {[%clk 0:00:06]}  Rb2 {[%clk 0:00:57]} 37. Rb8 {[%clk 0:00:05]}  Kf4 {[%clk 0:00:33]} 38. b6 {[%clk 0:00:05]}  Rb1+ {[%clk 0:00:33]} 39. Ke2 {[%clk 0:00:05]}  Bc4# {[%clk 0:00:33]} 0-1


[Site "https://www.chess.com"]

[Event "Titled Tuesday Blitz March 21 Early 2023"]
[White "Harriott, Tyrell"]
[Black "Sattarov, Bobir"]
[WhiteFideId "2086484"]
[BlackFideId "14203081"]
[WhiteElo "2107"]
[BlackElo "2351"]
[Result "0-1"]
[Round "02"]
[TimeControl "180+2"]
[Date "2023.03.21"]
[WhiteClock "0:00:59"]
[BlackClock "0:01:32"]

1. d4 {[%clk 0:03:00]}  Nf6 {[%clk 0:02:59]} 2. e3 {[%clk 0:03:01]}  g6 {[%clk 0:02:59]} 3. Bd3 {[%clk 0:03:00]}  Bg7 {[%clk 0:03:00]} 4. f4 {[%clk 0:03:00]}  O-O {[%clk 0:02:59]} 5. f5 {[%clk 0:03:00]}  c5 {[%clk 0:02:54]} 6. fxg6 {[%clk 0:02:58]}  hxg6 {[%clk 0:02:51]} 7. Nf3 {[%clk 0:02:58]}  d5 {[%clk 0:02:47]} 8. c3 {[%clk 0:02:58]}  Nc6 {[%clk 0:02:47]} 9. O-O {[%clk 0:02:57]}  e5 {[%clk 0:02:44]} 10. dxe5 {[%clk 0:02:57]}  Ng4 {[%clk 0:02:44]} 11. e4 {[%clk 0:02:54]}  c4 {[%clk 0:02:29]} 12. exd5 {[%clk 0:02:34]}  Qb6+ {[%clk 0:02:26]} 13. Kh1 {[%clk 0:02:32]}  cxd3 {[%clk 0:02:21]} 14. dxc6 {[%clk 0:02:28]}  Nf2+ {[%clk 0:02:20]} 15. Rxf2 {[%clk 0:02:28]}  Qxf2 {[%clk 0:02:21]} 16. Qxd3 {[%clk 0:02:24]}  Bf5 {[%clk 0:02:12]} 17. Be3 {[%clk 0:02:05]}  Qxb2 {[%clk 0:02:08]} 18. Qd4 {[%clk 0:01:45]}  Qxa1 {[%clk 0:02:04]} 19. Ng5 {[%clk 0:01:43]}  Qxb1+ {[%clk 0:02:01]} 20. Bg1 {[%clk 0:01:43]}  Rfd8 {[%clk 0:01:55]} 21. cxb7 {[%clk 0:01:25]}  Qxb7 {[%clk 0:01:55]} 22. Qh4 {[%clk 0:01:24]}  Rd2 {[%clk 0:01:53]} 23. Qh7+ {[%clk 0:01:18]}  Kf8 {[%clk 0:01:53]} 24. Bc5+ {[%clk 0:01:18]}  Ke8 {[%clk 0:01:47]} 25. Qg8+ {[%clk 0:01:18]}  Kd7 {[%clk 0:01:46]} 26. Qxf7+ {[%clk 0:01:18]}  Kc6 {[%clk 0:01:45]} 27. Qc4 {[%clk 0:01:10]}  Qb5 {[%clk 0:01:34]} 28. Qf7 {[%clk 0:00:59]}  Qf1+ {[%clk 0:01:32]} 0-1


[Site "https://www.chess.com"]

[Event "Titled Tuesday Blitz March 21 Early 2023"]
[White "Lorenzo De La Riva, Lazaro"]
[Black "Flores, Diego"]
[WhiteFideId "2268809"]
[BlackFideId "108049"]
[WhiteElo "2294"]
[BlackElo "2606"]
[Result "1-0"]
[Round "02"]
[TimeControl "180+2"]
[Date "2023.03.21"]
[WhiteClock "0:00:08"]
[BlackClock "0:00:02"]

1. e4 {[%clk 0:03:00]}  c5 {[%clk 0:02:58]} 2. Nf3 {[%clk 0:03:01]}  e6 {[%clk 0:02:59]} 3. d4 {[%clk 0:03:01]}  cxd4 {[%clk 0:02:59]} 4. Nxd4 {[%clk 0:03:02]}  a6 {[%clk 0:03:00]} 5. c4 {[%clk 0:03:00]}  Nf6 {[%clk 0:02:59]} 6. Nc3 {[%clk 0:02:59]}  Qc7 {[%clk 0:03:00]} 7. Be2 {[%clk 0:02:46]}  b6 {[%clk 0:03:00]} 8. O-O {[%clk 0:02:39]}  Bb7 {[%clk 0:03:00]} 9. f3 {[%clk 0:02:37]}  Bd6 {[%clk 0:02:50]} 10. Kh1 {[%clk 0:02:36]}  Bxh2 {[%clk 0:02:49]} 11. f4 {[%clk 0:02:33]}  Bg3 {[%clk 0:02:50]} 12. Qd3 {[%clk 0:02:19]}  Bh4 {[%clk 0:02:31]} 13. Qh3 {[%clk 0:02:18]}  Nxe4 {[%clk 0:02:20]} 14. Nxe4 {[%clk 0:02:10]}  Bxe4 {[%clk 0:02:21]} 15. Qxh4 {[%clk 0:02:10]}  Nc6 {[%clk 0:02:20]} 16. Nxc6 {[%clk 0:02:00]}  Qxc6 {[%clk 0:02:21]} 17. Qh3 {[%clk 0:01:46]}  O-O {[%clk 0:02:10]} 18. b3 {[%clk 0:01:44]}  b5 {[%clk 0:01:00]} 19. Bb2 {[%clk 0:01:40]}  bxc4 {[%clk 0:00:52]} 20. Bxc4 {[%clk 0:01:40]}  d5 {[%clk 0:00:43]} 21. Bd3 {[%clk 0:01:41]}  Rac8 {[%clk 0:00:18]} 22. Qg3 {[%clk 0:01:30]}  Bg6 {[%clk 0:00:12]} 23. f5 {[%clk 0:01:22]}  exf5 {[%clk 0:00:11]} 24. Bxf5 {[%clk 0:01:22]}  Rce8 {[%clk 0:00:10]} 25. Rac1 {[%clk 0:01:07]}  Qb5 {[%clk 0:00:06]} 26. Qc3 {[%clk 0:01:01]}  f6 {[%clk 0:00:05]} 27. Bxg6 {[%clk 0:00:45]}  hxg6 {[%clk 0:00:05]} 28. Qd4 {[%clk 0:00:38]}  Re4 {[%clk 0:00:04]} 29. Qc5 {[%clk 0:00:35]}  Qd7 {[%clk 0:00:04]} 30. Rcd1 {[%clk 0:00:32]}  Rd8 {[%clk 0:00:03]} 31. Kg1 {[%clk 0:00:28]}  d4 {[%clk 0:00:03]} 32. Rfe1 {[%clk 0:00:27]}  Rxe1+ {[%clk 0:00:02]} 33. Rxe1 {[%clk 0:00:28]}  d3 {[%clk 0:00:03]} 34. Rd1 {[%clk 0:00:25]}  Qg4 {[%clk 0:00:03]} 35. Qc4+ {[%clk 0:00:22]}  Qxc4 {[%clk 0:00:03]} 36. bxc4 {[%clk 0:00:23]}  Rc8 {[%clk 0:00:01]} 37. Rxd3 {[%clk 0:00:23]}  Rxc4 {[%clk 0:00:02]} 38. Rd2 {[%clk 0:00:23]}  Kf7 {[%clk 0:00:01]} 39. Kf2 {[%clk 0:00:23]}  g5 {[%clk 0:00:02]} 40. Ke3 {[%clk 0:00:24]}  Kg6 {[%clk 0:00:02]} 41. Kd3 {[%clk 0:00:24]}  Ra4 {[%clk 0:00:02]} 42. Bc3 {[%clk 0:00:22]}  Kf5 {[%clk 0:00:02]} 43. Rf2+ {[%clk 0:00:20]}  Kg4 {[%clk 0:00:02]} 44. Rf3 {[%clk 0:00:19]}  Rxa2 {[%clk 0:00:02]} 45. Re3 {[%clk 0:00:18]}  Rxg2 {[%clk 0:00:02]} 46. Re7 {[%clk 0:00:19]}  Rg3+ {[%clk 0:00:02]} 47. Kd2 {[%clk 0:00:18]}  Rg2+ {[%clk 0:00:02]} 48. Kd3 {[%clk 0:00:18]}  Rg3+ {[%clk 0:00:02]} 49. Kc4 {[%clk 0:00:19]}  Rf3 {[%clk 0:00:01]} 50. Rxg7 {[%clk 0:00:18]}  Rf4+ {[%clk 0:00:02]} 51. Kd3 {[%clk 0:00:17]}  Kf3 {[%clk 0:00:03]} 52. Bd2 {[%clk 0:00:16]}  Rf5 {[%clk 0:00:02]} 53. Ra7 {[%clk 0:00:16]}  g4 {[%clk 0:00:03]} 54. Rxa6 {[%clk 0:00:15]}  Rd5+ {[%clk 0:00:03]} 55. Kc3 {[%clk 0:00:14]}  g3 {[%clk 0:00:03]} 56. Rxf6+ {[%clk 0:00:14]}  Ke2 {[%clk 0:00:02]} 57. Re6+ {[%clk 0:00:08]}  Kf3 {[%clk 0:00:02]} 58. Re3+ {[%clk 0:00:09]}  Kf2 {[%clk 0:00:02]} 59. Re6 {[%clk 0:00:08]} 1-0


[Site "https://www.chess.com"]

[Event "Titled Tuesday Blitz March 21 Early 2023"]
[White "Idani, Pouya"]
[Black "Abduzhaparov"]
[WhiteFideId "12510130"]
[WhiteElo "2574"]
[BlackElo "2340"]
[Result "1-0"]
[Round "02"]
[TimeControl "180+2"]
[Date "2023.03.21"]
[WhiteClock "0:01:30"]
[BlackClock "0:00:06"]

1. e4 {[%clk 0:02:50]}  d6 {[%clk 0:03:00]} 2. d4 {[%clk 0:02:49]}  Nf6 {[%clk 0:03:01]} 3. Nc3 {[%clk 0:02:48]}  e5 {[%clk 0:03:02]} 4. Nf3 {[%clk 0:02:47]}  Nbd7 {[%clk 0:03:02]} 5. Rg1 {[%clk 0:02:40]}  Be7 {[%clk 0:02:46]} 6. g4 {[%clk 0:02:39]}  c6 {[%clk 0:02:46]} 7. g5 {[%clk 0:02:30]}  Nh5 {[%clk 0:02:46]} 8. Bc4 {[%clk 0:02:31]}  g6 {[%clk 0:02:35]} 9. Be3 {[%clk 0:02:29]}  b5 {[%clk 0:02:32]} 10. Bb3 {[%clk 0:02:28]}  a5 {[%clk 0:02:32]} 11. a4 {[%clk 0:02:25]}  b4 {[%clk 0:02:32]} 12. Ne2 {[%clk 0:02:24]}  O-O {[%clk 0:02:25]} 13. Ng3 {[%clk 0:02:21]}  Nf4 {[%clk 0:02:23]} 14. Bxf4 {[%clk 0:02:19]}  exf4 {[%clk 0:02:24]} 15. Ne2 {[%clk 0:02:20]}  Re8 {[%clk 0:02:02]} 16. Qd2 {[%clk 0:02:19]}  Ba6 {[%clk 0:01:44]} 17. Rg4 {[%clk 0:02:06]}  d5 {[%clk 0:01:42]} 18. e5 {[%clk 0:02:00]}  Nb6 {[%clk 0:01:32]} 19. Nxf4 {[%clk 0:01:56]}  Nc4 {[%clk 0:01:29]} 20. Bxc4 {[%clk 0:01:53]}  dxc4 {[%clk 0:01:21]} 21. Qe3 {[%clk 0:01:54]}  c3 {[%clk 0:01:19]} 22. b3 {[%clk 0:01:53]}  Bb7 {[%clk 0:00:55]} 23. O-O-O {[%clk 0:01:51]}  Qc8 {[%clk 0:00:53]} 24. e6 {[%clk 0:01:48]}  Bd6 {[%clk 0:00:39]} 25. Ne5 {[%clk 0:01:43]}  fxe6 {[%clk 0:00:31]} 26. h4 {[%clk 0:01:38]}  c5 {[%clk 0:00:29]} 27. h5 {[%clk 0:01:38]}  cxd4 {[%clk 0:00:29]} 28. Rxd4 {[%clk 0:01:38]}  Bc5 {[%clk 0:00:23]} 29. hxg6 {[%clk 0:01:39]}  hxg6 {[%clk 0:00:15]} 30. Nfxg6 {[%clk 0:01:38]}  Bxd4 {[%clk 0:00:12]} 31. Rxd4 {[%clk 0:01:38]}  Kg7 {[%clk 0:00:06]} 32. Qf4 {[%clk 0:01:30]} 1-0


[Site "https://www.chess.com"]